[Event "ESTCC-65 2025"]
[Site "Swidnica"]
[Date "2025.04.11"]
[Round "7.11"]
[White "Mestel, A Jonathan"]
[Black "Jahnel, Guenther"]
[Result "1-0"]
[Annotator "ChessBase"]
[ECO "B07"]
[WhiteElo "2449"]
[BlackElo "2148"]
[PlyCount "37"]
[EventDate "2025.04.05"]
[EventType "team-tourn"]
[EventCountry "POL"]
[SourceTitle "playchess.com"]
[Source "ChessBase"]
[SourceQuality "1"]
[WhiteTeam "England"]
[BlackTeam "Germany"]
[WhiteTeamCountry "ENG"]
[BlackTeamCountry "GER"]
[TimeControl "40/5400+30:1800+30"]

1. e4 {[%emt 0:00:11]} d6 {[%emt 0:00:16]} 2. d4 {[%emt 0:00:19]} Nf6 {[%emt 0:00:16]} 3. Nc3 {[%emt 0:00:19]} g6 {[%emt 0:00:36]} 4. Be3 {[%emt 0:00:48]} c6 {[%emt 0:00:50]} 5. Qd2 {[%emt 0:01:04]} b5 {[%emt 0:02:15]} 6. Bd3 {[%emt 0:00:24]} Bg7 {[%emt 0:00:27]} 7. Bh6 {[%emt 0:04:24]} Bxh6 {[%emt 0:08:52]} 8. Qxh6 {[%emt 0:00:08]} b4 {[%emt 0:01:31]} 9. Nce2 {[%emt 0:04:58]} Qa5 {[%emt 0:08:32]} 10. Nf3 {[%emt 0:09:03]} Nbd7 {[%emt 0:11:19]} 11. O-O {[%emt 0:03:59]} Ba6 {[%emt 0:05:14]} 12. c4 {[%emt 0:17:13]} e5 {[%emt 0:13:27]} 13. a3 {[%emt 0:10:38]} b3 {[%emt 0:02:34]} 14. Rad1 {[%emt 0:00:49]} Rb8 {[%emt 0:04:05]} 15. c5 {[%emt 0:02:21]} exd4 {[%emt 0:08:16]} 16. cxd6 {[%emt 0:05:16]} Bxd3 {[%emt 0:07:57]} 17. Rxd3 {[%emt 0:00:20]} Nxe4 {[%emt 0:05:36]} 18. Qg7 {[%emt 0:04:42]} Rf8 {[%emt 0:01:03]} 19. Nexd4 {[%emt 0:00:57]} 1-0

[Event "ESTCC-65 2025"]
[Site "Swidnica"]
[Date "2025.04.11"]
[Round "7.12"]
[White "Dietze, Frank"]
[Black "Large, Peter G"]
[Result "0-1"]
[Annotator "ChessBase"]
[ECO "A40"]
[WhiteElo "2102"]
[BlackElo "2342"]
[PlyCount "62"]
[EventDate "2025.04.05"]
[EventType "team-tourn"]
[EventCountry "POL"]
[SourceTitle "playchess.com"]
[Source "ChessBase"]
[SourceQuality "1"]
[WhiteTeam "Germany"]
[BlackTeam "England"]
[WhiteTeamCountry "GER"]
[BlackTeamCountry "ENG"]
[TimeControl "40/5400+30:1800+30"]

1. d4 {[%emt 0:00:09]} e6 {[%emt 0:00:34]} 2. c4 {[%emt 0:01:11]} b6 {[%emt 0:00:35]} 3. Nc3 {[%emt 0:00:49]} Bb7 {[%emt 0:00:25]} 4. Qc2 {[%emt 0:01:29]} Bb4 {[%emt 0:01:35]} 5. e4 {[%emt 0:01:11]} Qh4 {[%emt 0:02:43]} 6. Bd3 {[%emt 0:00:32]} f5 {[%emt 0:01:15]} 7. g3 {[%emt 0:03:04]} Qh5 {[%emt 0:00:25]} 8. Bd2 {[%emt 0:01:55]} Nf6 {[%emt 0:01:35]} 9. f3 {[%emt 0:08:33]} Nc6 {[%emt 0:09:04]} 10. Nge2 {[%emt 0:26:46]} Qxf3 {[%emt 0:14:36]} 11. Rf1 {[%emt 0:01:41]} Qh5 {[%emt 0:00:28]} 12. exf5 {[%emt 0:00:37]} O-O-O {[%emt 0:04:00]} 13. O-O-O {[%emt 0:01:11]} Rhe8 {[%emt 0:08:08]} 14. fxe6 {[%emt 0:16:08]} dxe6 {[%emt 0:00:55]} 15. a3 {[%emt 0:07:58]} Bf8 {[%emt 0:04:49]} 16. Bf4 {[%emt 0:01:48]} Kb8 {[%emt 0:08:09]} 17. Nb5 {[%emt 0:13:45]} Re7 {[%emt 0:10:46]} 18. Nxc7 {[%emt 0:04:23]} Rxc7 {[%emt 0:00:26]} 19. Bxc7+ {[%emt 0:00:01]} Kxc7 {[%emt 0:00:10]} 20. d5 {[%emt 0:00:01]} exd5 {[%emt 0:05:23]} 21. Nf4 {[%emt 0:00:01]} Qh6 {[%emt 0:00:54]} 22. Kb1 {[%emt 0:00:01]} Kb8 {[%emt 0:00:47]} 23. cxd5 {[%emt 0:00:15]} Ne5 {[%emt 0:01:09]} 24. Bf5 {[%emt 0:04:01]} Bd6 {[%emt 0:01:54]} 25. Be6 {[%emt 0:00:50]} Ba6 {[%emt 0:01:07]} 26. Rfe1 {[%emt 0:00:50]} g5 {[%emt 0:01:19]} 27. Rxe5 {[%emt 0:00:43]} Bxe5 {[%emt 0:03:48]} 28. d6 {[%emt 0:00:07]} Rxd6 {[%emt 0:03:23]} 29. Rxd6 {[%emt 0:00:37]} Bxd6 {[%emt 0:00:09]} 30. Qc6 {[%emt 0:00:10]} Qf8 {[%emt 0:03:23]} 31. Nd5 {[%emt 0:04:26]} Bb7 {[%emt 0:01:07]} 0-1

[Event "ESTCC-65 2025"]
[Site "Swidnica"]
[Date "2025.04.11"]
[Round "7.13"]
[White "Vadlja, Stjepan"]
[Black "Quinn, John M"]
[Result "0-1"]
[Annotator "NA"]
[ECO "B40"]
[WhiteElo "1697"]
[BlackElo "2073"]
[PlyCount "62"]
[EventDate "2025.04.05"]
[EventType "team-tourn"]
[EventCountry "POL"]
[SourceTitle "playchess.com"]
[Source "ChessBase"]
[SourceQuality "1"]
[WhiteTeam "Croatia"]
[BlackTeam "England"]
[WhiteTeamCountry "CRO"]
[BlackTeamCountry "ENG"]
[TimeControl "40/5400+30:1800+30"]

1. e4 {[%emt 0:08:07]} c5 {[%emt 0:00:05]} 2. Nf3 {[%emt 0:00:09]} e6 {[%emt 0:00:06]} 3. c4 {[%emt 0:00:17]} Nc6 {[%emt 0:01:20]} 4. d3 {[%emt 0:00:31]} d6 {[%emt 0:01:12]} 5. Be2 {[%emt 0:00:33]} g6 {[%emt 0:01:57]} 6. Bd2 {[%emt 0:00:15]} Bg7 {[%emt 0:00:17]} 7. Bc3 {[%emt 0:00:18]} e5 {[%emt 0:01:21]} 8. Na3 {[%emt 0:00:50]} Nge7 {[%emt 0:03:14]} 9. Nc2 {[%emt 0:02:32]} O-O {[%emt 0:03:01]} 10. Ne3 {[%emt 0:00:15]} a6 {[%emt 0:01:28]} 11. Nd5 {[%emt 0:02:12]} b5 {[%emt 0:07:07]} 12. b3 {[%emt 0:01:53]} Nxd5 {[%emt 0:03:59]} 13. exd5 {[%emt 0:04:29]} Nd4 {[%emt 0:09:48]} 14. O-O {[%emt 0:01:38]} f5 {[%emt 0:01:37]} 15. Nxd4 {[%emt 0:22:35]} cxd4 {[%emt 0:02:30]} 16. Bd2 {[%emt 0:01:26]} Bd7 {[%emt 0:12:27]} 17. Rc1 {[%emt 0:01:32]} Qe7 {[%emt 0:02:30]} 18. Rc2 {[%emt 0:02:21]} bxc4 {[%emt 0:02:25]} 19. bxc4 {[%emt 0:01:34]} Ba4 {[%emt 0:00:16]} 20. Qc1 {[%emt 0:00:13]} Bxc2 {[%emt 0:00:16]} 21. Qxc2 e4 {[%emt 0:02:40]} 22. Rc1 {[%emt 0:07:12]} Rab8 {[%emt 0:08:43]} 23. dxe4 {[%emt 0:04:24]} fxe4 {[%emt 0:03:01]} 24. Bg4 {[%emt 0:00:22]} Qf6 {[%emt 0:02:26]} 25. Be6+ {[%emt 0:00:11]} Kh8 {[%emt 0:00:06]} 26. Be1 {[%emt 0:02:00]} d3 {[%emt 0:07:52]} 27. Qd2 {[%emt 0:07:48]} Rb2 {[%emt 0:01:48]} 28. Qe3 {[%emt 0:00:17]} Re2 {[%emt 0:01:47]} 29. Qb6 {[%emt 0:00:30]} d2 {[%emt 0:00:38]} 30. Bxd2 {[%emt 0:00:23]} Rxd2 {[%emt 0:00:55]} 31. Qe3 {[%emt 0:00:43]} Rxf2 {[%emt 0:01:12]} 0-1

[Event "ESTCC-65 2025"]
[Site "Swidnica"]
[Date "2025.04.11"]
[Round "7.15"]
[White "Novak, Stjepan"]
[Black "Hewson, Brian W R"]
[Result "0-1"]
[Annotator "NA"]
[ECO "B15"]
[WhiteElo "1671"]
[BlackElo "2066"]
[PlyCount "90"]
[EventDate "2025.04.05"]
[EventType "team-tourn"]
[EventCountry "POL"]
[SourceTitle "playchess.com"]
[Source "ChessBase"]
[SourceQuality "1"]
[WhiteTeam "Croatia"]
[BlackTeam "England"]
[WhiteTeamCountry "CRO"]
[BlackTeamCountry "ENG"]
[TimeControl "40/5400+30:1800+30"]

1. e4 {[%emt 0:07:31]} c6 {[%emt 0:00:09]} 2. Nc3 {[%emt 0:00:27]} d5 {[%emt 0:00:07]} 3. d4 {[%emt 0:01:05]} dxe4 {[%emt 0:00:20]} 4. Nxe4 {[%emt 0:00:08]} Nf6 {[%emt 0:00:36]} 5. Nxf6+ {[%emt 0:01:08]} exf6 {[%emt 0:00:07]} 6. Nf3 {[%emt 0:00:50]} Bd6 {[%emt 0:00:17]} 7. Be2 {[%emt 0:01:11]} O-O {[%emt 0:00:08]} 8. O-O {[%emt 0:00:12]} Re8 {[%emt 0:02:21]} 9. c3 {[%emt 0:01:24]} Nd7 10. b4 {[%emt 0:00:26]} Nb6 {[%emt 0:07:11]} 11. a4 {[%emt 0:00:50]} Nd5 {[%emt 0:01:34]} 12. Qc2 {[%emt 0:01:21]} Bg4 {[%emt 0:11:38]} 13. h3 {[%emt 0:00:32]} Bh5 {[%emt 0:00:10]} 14. Bd1 {[%emt 0:01:27]} Bg6 {[%emt 0:06:58]} 15. Qb3 {[%emt 0:02:51]} Bf5 {[%emt 0:08:37]} 16. a5 {[%emt 0:02:31]} Qd7 {[%emt 0:11:26]} 17. Nh2 {[%emt 0:07:48]} Bd3 {[%emt 0:03:47]} 18. Nf3 {[%emt 0:02:57]} Bxf1 {[%emt 0:01:00]} 19. Kxf1 {[%emt 0:00:02]} Nf4 {[%emt 0:01:09]} 20. Bxf4 {[%emt 0:01:51]} Bxf4 {[%emt 0:00:08]} 21. Ra2 {[%emt 0:01:00]} Qe6 {[%emt 0:04:20]} 22. Qc2 {[%emt 0:01:18]} a6 {[%emt 0:01:01]} 23. Rb2 {[%emt 0:01:28]} Re7 {[%emt 0:03:11]} 24. Be2 {[%emt 0:00:29]} Rae8 {[%emt 0:00:22]} 25. Qd1 {[%emt 0:00:25]} Rd8 {[%emt 0:03:57]} 26. Bd3 {[%emt 0:05:07]} g6 {[%emt 0:01:12]} 27. Be2 {[%emt 0:00:58]} Qd5 {[%emt 0:06:11]} 28. Ne1 {[%emt 0:03:42]} Bc7 {[%emt 0:02:51]} 29. Nf3 {[%emt 0:00:54]} Qd6 {[%emt 0:04:17]} 30. g3 {[%emt 0:02:26]} Rde8 {[%emt 0:01:00]} 31. Qd3 {[%emt 0:00:17]} f5 {[%emt 0:02:26]} 32. Qd1 {[%emt 0:03:20]} h5 {[%emt 0:02:05]} 33. Qc1 {[%emt 0:01:51]} Kg7 {[%emt 0:01:31]} 34. h4 {[%emt 0:01:00]} f4 {[%emt 0:00:28]} 35. gxf4 {[%emt 0:02:45]} Qe6 {[%emt 0:05:52]} 36. Ng1 {[%emt 0:02:18]} Qf5 {[%emt 0:00:37]} 37. Qc2 {[%emt 0:01:49]} Qxf4 {[%emt 0:00:22]} 38. Qd2 {[%emt 0:01:43]} Qxh4 {[%emt 0:00:14]} 39. Qd3 {[%emt 0:01:19]} Qg5 {[%emt 0:03:17]} 40. Rc2 {[%emt 0:00:00]} Qf6 {[%emt 0:00:00]} 41. Qf3 {[%emt 0:02:40]} Bf4 {[%emt 0:09:42]} 42. Qg2 {[%emt 0:02:08]} Qf5 {[%emt 0:00:52]} 43. Rb2 {[%emt 0:01:42]} Bc1 {[%emt 0:00:28]} 44. Ra2 {[%emt 0:00:20]} Qb1 {[%emt 0:00:13]} 45. Qg3 {[%emt 0:01:22]} Bf4+ {[%emt 0:00:24]} 0-1

[Event "ESTCC-65 2025"]
[Site "Swidnica"]
[Date "2025.04.11"]
[Round "7.16"]
[White "Reynolds, D Ian W"]
[Black "Petanjek, Zvonko"]
[Result "1-0"]
[Annotator "NA"]
[ECO "C44"]
[WhiteElo "1926"]
[BlackElo "1732"]
[PlyCount "73"]
[EventDate "2025.04.05"]
[EventType "team-tourn"]
[EventCountry "POL"]
[SourceTitle "playchess.com"]
[Source "ChessBase"]
[SourceQuality "1"]
[WhiteTeam "England"]
[BlackTeam "Croatia"]
[WhiteTeamCountry "ENG"]
[BlackTeamCountry "CRO"]
[TimeControl "40/5400+30:1800+30"]

1. e4 {[%emt 0:00:27]} e5 {[%emt 0:07:16]} 2. Nf3 {[%emt 0:00:11]} Nc6 {[%emt 0:00:12]} 3. d4 {[%emt 0:00:11]} exd4 {[%emt 0:00:36]} 4. Nxd4 {[%emt 0:00:09]} Nxd4 {[%emt 0:00:05]} 5. Qxd4 {[%emt 0:00:11]} Qe7 {[%emt 0:00:12]} 6. Be2 {[%emt 0:06:27]} Qb4+ {[%emt 0:00:13]} 7. Qxb4 {[%emt 0:00:35]} Bxb4+ {[%emt 0:00:07]} 8. Bd2 {[%emt 0:00:14]} Bxd2+ {[%emt 0:00:17]} 9. Nxd2 {[%emt 0:00:10]} Ne7 {[%emt 0:00:55]} 10. O-O-O {[%emt 0:02:46]} d6 {[%emt 0:00:29]} 11. f4 {[%emt 0:03:32]} f6 {[%emt 0:00:10]} 12. Bf3 {[%emt 0:01:14]} O-O {[%emt 0:02:04]} 13. Nb3 {[%emt 0:03:39]} Rb8 {[%emt 0:00:43]} 14. Nd4 {[%emt 0:01:59]} a6 {[%emt 0:02:02]} 15. Rhe1 {[%emt 0:03:56]} Rd8 {[%emt 0:00:39]} 16. Ne2 {[%emt 0:18:12]} Be6 {[%emt 0:02:00]} 17. Rd2 {[%emt 0:06:19]} Kf8 {[%emt 0:00:58]} 18. Red1 {[%emt 0:02:07]} Ke8 {[%emt 0:00:25]} 19. Bh5+ {[%emt 0:07:05]} g6 {[%emt 0:00:22]} 20. Bf3 {[%emt 0:00:16]} b6 {[%emt 0:00:46]} 21. g4 {[%emt 0:04:33]} a5 {[%emt 0:02:46]} 22. b3 {[%emt 0:01:13]} Bf7 {[%emt 0:00:53]} 23. h4 {[%emt 0:00:55]} h6 {[%emt 0:00:20]} 24. Ng3 {[%emt 0:08:59]} g5 {[%emt 0:03:11]} 25. fxg5 {[%emt 0:01:40]} fxg5 {[%emt 0:00:08]} 26. h5 {[%emt 0:00:22]} Be6 {[%emt 0:01:04]} 27. Nf5 {[%emt 0:01:50]} Bxf5 {[%emt 0:03:26]} 28. exf5 {[%emt 0:00:13]} Ng8 {[%emt 0:00:41]} 29. Re2+ {[%emt 0:02:36]} Kf8 {[%emt 0:00:13]} 30. Re6 {[%emt 0:04:18]} Re8 {[%emt 0:00:16]} 31. Rg6 {[%emt 0:01:43]} Re7 {[%emt 0:01:18]} 32. Bd5 {[%emt 0:00:29]} Rg7 {[%emt 0:00:00]} 33. Bxg8 {[%emt 0:01:17]} Rxg6 {[%emt 0:00:05]} 34. hxg6 {[%emt 0:02:38]} Kxg8 {[%emt 0:00:09]} 35. Re1 {[%emt 0:00:20]} Kf8 {[%emt 0:00:31]} 36. Re6 {[%emt 0:00:42]} Ra8 37. f6 1-0

[Event "ESTCC-65 2025"]
[Site "Swidnica"]
[Date "2025.04.12"]
[Round "8.1"]
[White "Sandner, Gunter"]
[Black "Vadlja, Stjepan"]
[Result "1-0"]
[Annotator "ChessBase"]
[ECO "E09"]
[WhiteElo "2243"]
[BlackElo "1697"]
[PlyCount "65"]
[EventDate "2025.04.05"]
[EventType "team-tourn"]
[EventCountry "POL"]
[SourceTitle "playchess.com"]
[Source "ChessBase"]
[SourceQuality "1"]
[WhiteTeam "Germany"]
[BlackTeam "Croatia"]
[WhiteTeamCountry "GER"]
[BlackTeamCountry "CRO"]
[TimeControl "40/5400+30:1800+30"]

1. d4 {[%emt 0:00:03]} d5 {[%emt 0:00:11]} 2. Nf3 {[%emt 0:00:04]} Nf6 {[%emt 0:00:24]} 3. c4 {[%emt 0:00:05]} c6 {[%emt 0:00:13]} 4. g3 {[%emt 0:00:42]} e6 {[%emt 0:00:25]} 5. Bg2 {[%emt 0:00:04]} Be7 {[%emt 0:01:31]} 6. O-O {[%emt 0:00:06]} O-O {[%emt 0:00:54]} 7. Qc2 {[%emt 0:00:10]} Nbd7 {[%emt 0:00:40]} 8. Nbd2 {[%emt 0:00:32]} Re8 {[%emt 0:00:59]} 9. e4 {[%emt 0:00:31]} dxe4 {[%emt 0:00:16]} 10. Nxe4 {[%emt 0:00:02]} Nxe4 {[%emt 0:00:37]} 11. Qxe4 {[%emt 0:00:03]} Nf6 {[%emt 0:00:15]} 12. Qe2 {[%emt 0:01:52]} c5 {[%emt 0:00:22]} 13. Be3 {[%emt 0:07:14]} Qb6 {[%emt 0:02:02]} 14. Rfd1 {[%emt 0:01:57]} h6 {[%emt 0:09:02]} 15. Ne5 {[%emt 0:04:14]} cxd4 {[%emt 0:01:35]} 16. Bxd4 {[%emt 0:00:42]} Bc5 {[%emt 0:00:21]} 17. Bc3 {[%emt 0:03:26]} a5 {[%emt 0:00:38]} 18. Rd3 {[%emt 0:04:44]} Bb4 {[%emt 0:01:21]} 19. Bd4 {[%emt 0:02:29]} Bc5 {[%emt 0:00:09]} 20. Rad1 {[%emt 0:00:52]} Rb8 {[%emt 0:06:28]} 21. h4 {[%emt 0:07:17]} Qc7 {[%emt 0:07:41]} 22. g4 {[%emt 0:06:34]} g6 {[%emt 0:05:54]} 23. Qe3 {[%emt 0:09:39]} Bxd4 24. Rxd4 Kg7 {[%emt 0:02:12]} 25. g5 {[%emt 0:02:44]} hxg5 {[%emt 0:01:42]} 26. hxg5 {[%emt 0:00:04]} Nh5 {[%emt 0:00:25]} 27. Rd7 {[%emt 0:06:55]} Bxd7 {[%emt 0:00:54]} 28. Rxd7 {[%emt 0:00:07]} Qc8 {[%emt 0:00:39]} 29. Rxf7+ {[%emt 0:00:35]} Kg8 {[%emt 0:00:28]} 30. Qe4 {[%emt 0:00:38]} Nf4 {[%emt 0:04:34]} 31. Qxf4 {[%emt 0:00:54]} Rf8 {[%emt 0:00:12]} 32. Qf6 {[%emt 0:00:08]} Rxf7 33. Qxf7+ 1-0

[Event "ESTCC-65 2025"]
[Site "Swidnica"]
[Date "2025.04.12"]
[Round "8.2"]
[White "Sobocanec, Alojz"]
[Black "Kyas, Juergen"]
[Result "0-1"]
[Annotator "ChessBase"]
[ECO "D80"]
[WhiteElo "1792"]
[BlackElo "2168"]
[PlyCount "70"]
[EventDate "2025.04.05"]
[EventType "team-tourn"]
[EventCountry "POL"]
[SourceTitle "playchess.com"]
[Source "ChessBase"]
[SourceQuality "1"]
[WhiteTeam "Croatia"]
[BlackTeam "Germany"]
[WhiteTeamCountry "CRO"]
[BlackTeamCountry "GER"]
[TimeControl "40/5400+30:1800+30"]

1. d4 {[%emt 0:15:18]} Nf6 {[%emt 0:00:04]} 2. c4 {[%emt 0:00:02]} g6 {[%emt 0:00:14]} 3. Nc3 {[%emt 0:00:05]} d5 {[%emt 0:00:09]} 4. h3 {[%emt 0:00:06]} Bg7 {[%emt 0:00:12]} 5. Nf3 {[%emt 0:00:08]} O-O {[%emt 0:00:59]} 6. cxd5 {[%emt 0:00:09]} Nxd5 {[%emt 0:00:18]} 7. e4 {[%emt 0:00:04]} Nxc3 {[%emt 0:01:05]} 8. bxc3 {[%emt 0:00:03]} c5 {[%emt 0:00:16]} 9. Be2 {[%emt 0:06:42]} Nc6 {[%emt 0:06:53]} 10. Be3 {[%emt 0:02:06]} cxd4 {[%emt 0:01:47]} 11. cxd4 {[%emt 0:00:45]} Qa5+ {[%emt 0:01:59]} 12. Bd2 {[%emt 0:00:33]} Qa3 {[%emt 0:00:16]} 13. e5 {[%emt 0:00:22]} Rd8 {[%emt 0:03:05]} 14. Qb3 {[%emt 0:00:33]} Qxb3 {[%emt 0:01:27]} 15. axb3 {[%emt 0:00:02]} Be6 {[%emt 0:02:43]} 16. O-O {[%emt 0:00:52]} Bxb3 {[%emt 0:02:55]} 17. Rab1 {[%emt 0:00:14]} Bd5 {[%emt 0:00:29]} 18. Be3 {[%emt 0:00:30]} a5 {[%emt 0:05:36]} 19. Nd2 {[%emt 0:01:43]} a4 {[%emt 0:12:35]} 20. Bf3 {[%emt 0:00:11]} e6 {[%emt 0:11:53]} 21. Bxd5 {[%emt 0:01:01]} Rxd5 {[%emt 0:00:46]} 22. Nf3 {[%emt 0:00:26]} b5 {[%emt 0:02:31]} 23. Rfc1 {[%emt 0:00:04]} Ra6 {[%emt 0:03:36]} 24. Rc2 {[%emt 0:00:11]} h6 {[%emt 0:11:31]} 25. Rbc1 {[%emt 0:01:20]} Ne7 {[%emt 0:01:17]} 26. g4 {[%emt 0:00:45]} Rd8 {[%emt 0:05:45]} 27. Rb2 {[%emt 0:01:59]} Rb8 {[%emt 0:01:26]} 28. Nd2 {[%emt 0:03:39]} Nd5 {[%emt 0:02:48]} 29. Ne4 {[%emt 0:00:10]} Bf8 {[%emt 0:04:05]} 30. Nf6+ Nxf6 {[%emt 0:02:36]} 31. exf6 {[%emt 0:05:46]} b4 {[%emt 0:02:38]} 32. Rc4 {[%emt 0:01:47]} a3 {[%emt 0:02:30]} 33. Rbc2 {[%emt 0:02:28]} a2 {[%emt 0:03:17]} 34. Rc8 {[%emt 0:00:11]} a1=Q+ {[%emt 0:00:44]} 35. Kg2 {[%emt 0:00:11]} Raa8 {[%emt 0:00:14]} 0-1

[Event "ESTCC-65 2025"]
[Site "Swidnica"]
[Date "2025.04.12"]
[Round "8.3"]
[White "Topchii, Gennadii"]
[Black "Novak, Stjepan"]
[Result "1-0"]
[Annotator "NA"]
[ECO "A10"]
[WhiteElo "2012"]
[BlackElo "1671"]
[PlyCount "54"]
[EventDate "2025.04.05"]
[EventType "team-tourn"]
[EventCountry "POL"]
[SourceTitle "playchess.com"]
[Source "ChessBase"]
[SourceQuality "1"]
[WhiteTeam "Germany"]
[BlackTeam "Croatia"]
[WhiteTeamCountry "GER"]
[BlackTeamCountry "CRO"]
[TimeControl "40/5400+30:1800+30"]

1. c4 {[%emt 0:00:01]} g6 {[%emt 0:00:16]} 2. d4 {[%emt 0:00:09]} c5 {[%emt 0:00:16]} 3. Nf3 {[%emt 0:00:23]} Bg7 {[%emt 0:00:10]} 4. Nc3 {[%emt 0:00:13]} cxd4 {[%emt 0:00:25]} 5. Nxd4 {[%emt 0:00:11]} Bxd4 {[%emt 0:00:52]} 6. Qxd4 {[%emt 0:00:12]} Nf6 {[%emt 0:00:19]} 7. e4 {[%emt 0:00:28]} Nc6 {[%emt 0:00:24]} 8. Qd2 {[%emt 0:00:32]} O-O {[%emt 0:00:33]} 9. Be2 {[%emt 0:00:16]} d6 {[%emt 0:00:56]} 10. O-O {[%emt 0:00:12]} Be6 {[%emt 0:00:34]} 11. b3 {[%emt 0:00:09]} a6 {[%emt 0:00:39]} 12. Bb2 {[%emt 0:00:29]} Qc7 {[%emt 0:01:30]} 13. Rac1 {[%emt 0:00:13]} Rac8 {[%emt 0:00:35]} 14. Rfd1 {[%emt 0:04:57]} Bg4 {[%emt 0:00:39]} 15. Nd5 {[%emt 0:04:15]} Nxd5 {[%emt 0:04:55]} 16. cxd5 {[%emt 0:00:34]} Bxe2 {[%emt 0:00:31]} 17. Qxe2 {[%emt 0:00:02]} Nd4 {[%emt 0:01:04]} 18. Rxd4 {[%emt 0:01:54]} Qb6 {[%emt 0:00:36]} 19. Rdc4 {[%emt 0:00:16]} Rxc4 {[%emt 0:01:25]} 20. Qxc4 {[%emt 0:01:12]} f6 {[%emt 0:00:55]} 21. g3 {[%emt 0:00:30]} Kf7 {[%emt 0:00:23]} 22. Bd4 {[%emt 0:00:31]} Qd8 {[%emt 0:00:44]} 23. Qc7 {[%emt 0:00:16]} Qa8 {[%emt 0:00:13]} 24. Qd7 {[%emt 0:00:17]} Re8 {[%emt 0:00:37]} 25. Rc7 {[%emt 0:00:16]} Qd8 {[%emt 0:02:15]} 26. Qe6+ {[%emt 0:00:32]} Kf8 {[%emt 0:00:20]} 27. Rd7 {[%emt 0:01:15]} b5 {[%emt 0:01:37]} 1-0

[Event "ESTCC-65 2025"]
[Site "Swidnica"]
[Date "2025.04.12"]
[Round "8.4"]
[White "Petanjek, Zvonko"]
[Black "Dietze, Frank"]
[Result "0-1"]
[Annotator "ChessBase"]
[ECO "B30"]
[WhiteElo "1732"]
[BlackElo "2102"]
[PlyCount "73"]
[EventDate "2025.04.05"]
[EventType "team-tourn"]
[EventCountry "POL"]
[SourceTitle "playchess.com"]
[Source "ChessBase"]
[SourceQuality "1"]
[WhiteTeam "Croatia"]
[BlackTeam "Germany"]
[WhiteTeamCountry "CRO"]
[BlackTeamCountry "GER"]
[TimeControl "40/5400+30:1800+30"]

1. e4 {[%emt 0:00:07]} c5 {[%emt 0:00:14]} 2. Nf3 {[%emt 0:00:05]} Nc6 {[%emt 0:00:11]} 3. Nc3 {[%emt 0:00:06]} g6 {[%emt 0:01:24]} 4. d3 {[%emt 0:00:21]} Bg7 {[%emt 0:00:26]} 5. Bd2 {[%emt 0:00:08]} Nf6 {[%emt 0:00:51]} 6. h3 {[%emt 0:00:11]} O-O {[%emt 0:01:22]} 7. Rb1 {[%emt 0:00:25]} e6 {[%emt 0:00:31]} 8. a3 {[%emt 0:01:09]} d5 {[%emt 0:00:19]} 9. Be2 {[%emt 0:01:39]} b6 {[%emt 0:03:53]} 10. O-O {[%emt 0:00:09]} Bb7 {[%emt 0:01:53]} 11. exd5 {[%emt 0:00:40]} exd5 {[%emt 0:00:56]} 12. Re1 {[%emt 0:01:00]} Qd7 {[%emt 0:05:47]} 13. Nh2 {[%emt 0:00:58]} Nd4 {[%emt 0:05:27]} 14. Be3 {[%emt 0:00:39]} Nxe2+ {[%emt 0:00:27]} 15. Nxe2 {[%emt 0:00:10]} Qc6 {[%emt 0:00:46]} 16. f3 {[%emt 0:00:53]} h5 {[%emt 0:02:16]} 17. Bf2 {[%emt 0:00:30]} Rae8 {[%emt 0:02:46]} 18. c3 {[%emt 0:01:24]} Bc8 {[%emt 0:10:18]} 19. Ng3 {[%emt 0:00:45]} Bh6 {[%emt 0:03:20]} 20. Qc2 {[%emt 0:00:44]} Bd7 {[%emt 0:10:11]} 21. Rxe8 {[%emt 0:03:10]} Rxe8 {[%emt 0:00:01]} 22. Re1 {[%emt 0:00:28]} Rxe1+ {[%emt 0:01:08]} 23. Bxe1 {[%emt 0:00:06]} Qa4 {[%emt 0:00:09]} 24. Qxa4 {[%emt 0:02:50]} Bxa4 {[%emt 0:00:02]} 25. Ne2 {[%emt 0:00:08]} Bb5 {[%emt 0:13:23]} 26. Kf1 {[%emt 0:00:44]} Bxd3 {[%emt 0:00:09]} 27. Kf2 {[%emt 0:01:06]} Ne8 {[%emt 0:03:56]} 28. Nf1 {[%emt 0:00:27]} Nd6 {[%emt 0:01:17]} 29. Bd2 {[%emt 0:00:44]} Bg7 {[%emt 0:07:05]} 30. Nc1 {[%emt 0:00:56]} Bxf1 {[%emt 0:00:50]} 31. Kxf1 {[%emt 0:00:05]} Nc4 {[%emt 0:00:02]} 32. Ke2 {[%emt 0:00:26]} Nxb2 {[%emt 0:00:10]} 33. Nd3 {[%emt 0:01:32]} Nc4 {[%emt 0:00:47]} 34. a4 {[%emt 0:00:16]} f5 {[%emt 0:01:37]} 35. Nf4 {[%emt 0:00:34]} Nxd2 {[%emt 0:00:01]} 36. Kxd2 {[%emt 0:00:36]} Bh6 {[%emt 0:00:01]} 37. g3 {[%emt 0:01:33]} 0-1

[Event "ESTCC-65 2025"]
[Site "Swidnica"]
[Date "2025.04.12"]
[Round "8.5"]
[White "Maier, Christian"]
[Black "Kosten, Anthony C."]
[Result "0-1"]
[Annotator "ChessBase"]
[ECO "C55"]
[WhiteElo "2233"]
[BlackElo "2366"]
[PlyCount "62"]
[EventDate "2025.04.05"]
[EventType "team-tourn"]
[EventCountry "POL"]
[SourceTitle "playchess.com"]
[Source "ChessBase"]
[SourceQuality "1"]
[WhiteTeam "Germany"]
[BlackTeam "England"]
[WhiteTeamCountry "GER"]
[BlackTeamCountry "ENG"]
[TimeControl "40/5400+30:1800+30"]

1. e4 {[%emt 0:00:09]} e5 {[%emt 0:00:08]} 2. Nf3 {[%emt 0:00:18]} Nc6 {[%emt 0:00:08]} 3. Bc4 {[%emt 0:00:22]} Nf6 {[%emt 0:00:23]} 4. d3 {[%emt 0:00:26]} d5 {[%emt 0:00:31]} 5. exd5 {[%emt 0:02:42]} Nxd5 {[%emt 0:00:08]} 6. O-O {[%emt 0:02:15]} Nb6 {[%emt 0:00:07]} 7. Bb3 {[%emt 0:01:20]} Bg4 {[%emt 0:00:28]} 8. Re1 {[%emt 0:01:00]} Qe7 {[%emt 0:00:25]} 9. h3 {[%emt 0:00:38]} Bh5 {[%emt 0:00:20]} 10. a4 {[%emt 0:06:00]} a5 {[%emt 0:00:08]} 11. Be3 {[%emt 0:01:30]} O-O-O {[%emt 0:01:47]} 12. Nbd2 {[%emt 0:14:12]} Nd5 {[%emt 0:06:47]} 13. c3 {[%emt 0:07:39]} Nxe3 {[%emt 0:09:37]} 14. Rxe3 {[%emt 0:00:22]} f5 {[%emt 0:12:17]} 15. Qf1 {[%emt 0:03:18]} Qf6 {[%emt 0:03:42]} 16. Rae1 {[%emt 0:17:31]} Bd6 {[%emt 0:00:41]} 17. Bd5 {[%emt 0:05:41]} Ne7 {[%emt 0:11:35]} 18. Bxb7+ {[%emt 0:12:06]} Kxb7 {[%emt 0:00:10]} 19. d4 {[%emt 0:00:03]} e4 {[%emt 0:01:43]} 20. Qb5+ {[%emt 0:00:08]} Kc8 {[%emt 0:00:52]} 21. Rxe4 {[%emt 0:04:44]} fxe4 {[%emt 0:07:24]} 22. Nxe4 {[%emt 0:00:04]} Qf5 {[%emt 0:03:12]} 23. Ne5 {[%emt 0:03:22]} Bxe5 {[%emt 0:02:23]} 24. Qa6+ {[%emt 0:01:14]} Kd7 {[%emt 0:11:04]} 25. Nc5+ {[%emt 0:00:21]} Ke8 {[%emt 0:00:09]} 26. Rxe5 {[%emt 0:00:02]} Qf6 {[%emt 0:08:22]} 27. Re6 {[%emt 0:01:00]} Qg5 {[%emt 0:02:05]} 28. Qc6+ {[%emt 0:09:28]} Kf7 {[%emt 0:01:57]} 29. Qxc7 {[%emt 0:00:25]} Rc8 {[%emt 0:02:12]} 30. Qd6 {[%emt 0:02:29]} Rhd8 {[%emt 0:01:43]} 31. Nd7 {[%emt 0:00:06]} Ke8 {[%emt 0:06:00]} 0-1